[Event "December 19 Late 2023"]
[Site "https://www.chess.com"]
[Date "2023.12.19"]
[Round "9"]
[White "Skibbe, Willi"]
[Black "Sailer, Mike"]
[Result "1-0"]
[Board "101"]
[TimeControl "180+1"]
[WhiteFideId "4682190"]
[BlackFideId "2012901"]
[WhiteElo "2375"]
[BlackElo "2109"]
[WhiteTeam "GER"]
[BlackTeam "USA"]
[WhiteClock "0:01:06"]
[BlackClock "0:00:00"]

1. e4 {[%clk 0:03:00]}  d5 {[%clk 0:02:58]} 2. exd5 {[%clk 0:03:00]}  Qxd5 {[%clk 0:02:57]} 3. Nf3 {[%clk 0:02:53]}  Bg4 {[%clk 0:02:55]} 4. Be2 {[%clk 0:02:52]}  Nc6 {[%clk 0:02:54]} 5. Nc3 {[%clk 0:02:52]}  Qf5 {[%clk 0:02:47]} 6. h3 {[%clk 0:02:49]}  Bxf3 {[%clk 0:02:38]} 7. Bxf3 {[%clk 0:02:50]}  Nf6 {[%clk 0:02:34]} 8. d3 {[%clk 0:02:48]}  e6 {[%clk 0:02:33]} 9. O-O {[%clk 0:02:46]}  Bd6 {[%clk 0:02:32]} 10. Bxc6+ {[%clk 0:02:38]}  bxc6 {[%clk 0:02:31]} 11. Qe2 {[%clk 0:02:36]}  O-O {[%clk 0:02:30]} 12. Ne4 {[%clk 0:02:21]}  Nxe4 {[%clk 0:02:22]} 13. Qxe4 {[%clk 0:02:20]}  Qd5 {[%clk 0:02:04]} 14. b3 {[%clk 0:02:12]}  Be5 {[%clk 0:01:50]} 15. Rb1 {[%clk 0:02:11]}  a5 {[%clk 0:01:43]} 16. a4 {[%clk 0:02:11]}  f5 {[%clk 0:01:31]} 17. Qxd5 {[%clk 0:02:07]}  exd5 {[%clk 0:01:26]} 18. Re1 {[%clk 0:02:04]}  Rfe8 {[%clk 0:01:21]} 19. Bd2 {[%clk 0:02:03]}  Kf7 {[%clk 0:01:13]} 20. g3 {[%clk 0:02:01]}  Bd6 {[%clk 0:01:06]} 21. Rxe8 {[%clk 0:01:59]}  Kxe8 {[%clk 0:01:06]} 22. Re1+ {[%clk 0:01:58]}  Kf7 {[%clk 0:01:03]} 23. Kg2 {[%clk 0:01:58]}  Bb4 {[%clk 0:01:01]} 24. Bxb4 {[%clk 0:01:53]}  axb4 {[%clk 0:01:01]} 25. f4 {[%clk 0:01:51]}  g6 {[%clk 0:00:58]} 26. Re5 {[%clk 0:01:47]}  Rd8 {[%clk 0:00:54]} 27. Kf3 {[%clk 0:01:46]}  c5 {[%clk 0:00:52]} 28. d4 {[%clk 0:01:40]}  c4 {[%clk 0:00:43]} 29. Ke2 {[%clk 0:01:35]}  c3 {[%clk 0:00:37]} 30. Kd3 {[%clk 0:01:31]}  c6 {[%clk 0:00:36]} 31. g4 {[%clk 0:01:30]}  fxg4 {[%clk 0:00:35]} 32. hxg4 {[%clk 0:01:31]}  h6 {[%clk 0:00:31]} 33. Ke3 {[%clk 0:01:26]}  Rh8 {[%clk 0:00:26]} 34. f5 {[%clk 0:01:24]}  gxf5 {[%clk 0:00:22]} 35. Rxf5+ {[%clk 0:01:22]}  Ke6 {[%clk 0:00:21]} 36. Kf4 {[%clk 0:01:21]}  Rg8 {[%clk 0:00:14]} 37. Kg3 {[%clk 0:01:15]}  Rg5 {[%clk 0:00:07]} 38. Kh4 {[%clk 0:01:10]}  Rxf5 {[%clk 0:00:05]} 39. gxf5+ {[%clk 0:01:11]}  Kxf5 {[%clk 0:00:05]} 40. a5 {[%clk 0:01:11]}  c5 {[%clk 0:00:06]} 41. a6 {[%clk 0:01:07]}  cxd4 {[%clk 0:00:06]} 42. a7 {[%clk 0:01:07]}  d3 {[%clk 0:00:07]} 43. a8=Q {[%clk 0:01:07]}  d2 {[%clk 0:00:07]} 44. Qxd5+ {[%clk 0:01:07]}  Kf4 {[%clk 0:00:08]} 45. Qd3 {[%clk 0:01:05]}  Ke5 {[%clk 0:00:03]} 46. Kh5 {[%clk 0:01:05]}  Kf4 {[%clk 0:00:03]} 47. Kxh6 {[%clk 0:01:06]}  Ke5 {[%clk 0:00:04]} 48. Kg6 {[%clk 0:01:06]}  Kf4 {[%clk 0:00:04]} 49. Kf6 {[%clk 0:01:06]}  Kg4 {[%clk 0:00:04]} 50. Ke5 {[%clk 0:01:06]}  Kg5 {[%clk 0:00:03]} 51. Kd4 {[%clk 0:01:06]}  Kf4 {[%clk 0:00:00]} 52. Kc4 {[%clk 0:01:06]} 1-0

[Event "December 19 Late 2023"]
[Site "https://www.chess.com"]
[Date "2023.12.19"]
[Round "9"]
[White "Nielsen, Viktor Haarmark"]
[Black "Stead, Kerry"]
[Result "1-0"]
[Board "104"]
[TimeControl "180+1"]
[WhiteFideId "1444492"]
[BlackFideId "3202577"]
[WhiteElo "2315"]
[BlackElo "1997"]
[WhiteTeam "DEN"]
[BlackTeam "AUS"]
[WhiteClock "0:01:00"]
[BlackClock "0:00:00"]

1. e4 {[%clk 0:03:00]}  e6 {[%clk 0:02:52]} 2. d4 {[%clk 0:03:00]}  d5 {[%clk 0:02:51]} 3. Nc3 {[%clk 0:03:00]}  Bb4 {[%clk 0:02:50]} 4. e5 {[%clk 0:03:01]}  c5 {[%clk 0:02:50]} 5. a3 {[%clk 0:03:01]}  Bxc3+ {[%clk 0:02:49]} 6. bxc3 {[%clk 0:03:02]}  Qc7 {[%clk 0:02:49]} 7. Qg4 {[%clk 0:02:58]}  f5 {[%clk 0:02:49]} 8. Qg3 {[%clk 0:02:53]}  Nc6 {[%clk 0:02:47]} 9. Nf3 {[%clk 0:02:23]}  h6 {[%clk 0:02:36]} 10. h4 {[%clk 0:02:21]}  c4 {[%clk 0:02:27]} 11. Be2 {[%clk 0:02:15]}  Qf7 {[%clk 0:01:39]} 12. h5 {[%clk 0:02:14]}  Nge7 {[%clk 0:01:10]} 13. a4 {[%clk 0:02:14]}  Bd7 {[%clk 0:01:09]} 14. Ba3 {[%clk 0:02:14]}  O-O-O {[%clk 0:01:07]} 15. Qf4 {[%clk 0:02:09]}  g5 {[%clk 0:01:04]} 16. hxg6 {[%clk 0:02:09]}  Nxg6 {[%clk 0:01:04]} 17. Qh2 {[%clk 0:02:06]}  Nb8 {[%clk 0:00:56]} 18. Bd6 {[%clk 0:02:05]}  Na6 {[%clk 0:00:56]} 19. Kd2 {[%clk 0:01:56]}  Bc6 {[%clk 0:00:49]} 20. a5 {[%clk 0:01:41]}  Nc7 {[%clk 0:00:42]} 21. Nh4 {[%clk 0:01:37]}  Nxh4 {[%clk 0:00:40]} 22. Qxh4 {[%clk 0:01:38]}  Qg6 {[%clk 0:00:38]} 23. g3 {[%clk 0:01:36]}  Qg5+ {[%clk 0:00:37]} 24. f4 {[%clk 0:01:13]}  Qxh4 {[%clk 0:00:36]} 25. Rxh4 {[%clk 0:01:14]}  Rdg8 {[%clk 0:00:34]} 26. Rh3 {[%clk 0:01:15]}  Rg6 {[%clk 0:00:32]} 27. Ke3 {[%clk 0:01:14]}  Rhg8 {[%clk 0:00:28]} 28. Kf2 {[%clk 0:01:15]}  Nb5 {[%clk 0:00:24]} 29. Bb4 {[%clk 0:01:10]}  Nc7 {[%clk 0:00:19]} 30. Rah1 {[%clk 0:01:09]}  Na6 {[%clk 0:00:17]} 31. Be7 {[%clk 0:01:08]}  Kd7 {[%clk 0:00:16]} 32. Bf6 {[%clk 0:01:08]}  Ke8 {[%clk 0:00:17]} 33. Bh5 {[%clk 0:01:08]}  Kd7 {[%clk 0:00:16]} 34. Bxg6 {[%clk 0:01:08]}  Rxg6 {[%clk 0:00:17]} 35. Rxh6 {[%clk 0:01:09]}  Rxh6 {[%clk 0:00:17]} 36. Rxh6 {[%clk 0:01:09]}  Nc7 {[%clk 0:00:17]} 37. Rh7+ {[%clk 0:01:09]}  Kc8 {[%clk 0:00:15]} 38. Rh8+ {[%clk 0:01:09]}  Be8 {[%clk 0:00:13]} 39. Be7 {[%clk 0:01:09]}  Kd7 {[%clk 0:00:13]} 40. Bb4 {[%clk 0:01:09]}  Nb5 {[%clk 0:00:13]} 41. Kf3 {[%clk 0:01:00]}  a6 {[%clk 0:00:00]} 42. g4 {[%clk 0:01:00]} 1-0

[Event "December 19 Late 2023"]
[Site "https://www.chess.com"]
[Date "2023.12.19"]
[Round "9"]
[White "Kniazev, Igor"]
[Black "Gerbelli Neto, Eduardo"]
[Result "0-1"]
[Board "109"]
[TimeControl "180+1"]
[WhiteFideId "4136349"]
[BlackFideId "2103281"]
[WhiteElo "1853"]
[BlackElo "2178"]
[WhiteTeam "RUS"]
[BlackTeam "BRA"]
[WhiteClock "0:00:17"]
[BlackClock "0:00:33"]

1. e4 {[%clk 0:03:00]}  e5 {[%clk 0:02:59]} 2. Nf3 {[%clk 0:03:00]}  Nc6 {[%clk 0:03:00]} 3. Bb5 {[%clk 0:03:00]}  a6 {[%clk 0:03:00]} 4. Bxc6 {[%clk 0:03:00]}  dxc6 {[%clk 0:03:00]} 5. Nc3 {[%clk 0:03:01]}  Bc5 {[%clk 0:02:54]} 6. O-O {[%clk 0:02:55]}  Bg4 {[%clk 0:02:45]} 7. h3 {[%clk 0:02:54]}  h5 {[%clk 0:02:45]} 8. d3 {[%clk 0:02:40]}  Qf6 {[%clk 0:02:44]} 9. Be3 {[%clk 0:02:37]}  Bd4 {[%clk 0:02:32]} 10. Bxd4 {[%clk 0:02:12]}  exd4 {[%clk 0:02:33]} 11. e5 {[%clk 0:02:11]}  Qh6 {[%clk 0:01:33]} 12. Ne4 {[%clk 0:02:01]}  Ne7 {[%clk 0:01:20]} 13. Qd2 {[%clk 0:01:47]}  Bxf3 {[%clk 0:01:19]} 14. Qxh6 {[%clk 0:01:44]}  Rxh6 {[%clk 0:01:19]} 15. gxf3 {[%clk 0:01:44]}  Nd5 {[%clk 0:01:12]} 16. c3 {[%clk 0:01:21]}  Nf4 {[%clk 0:01:09]} 17. cxd4 {[%clk 0:01:19]}  O-O-O {[%clk 0:00:59]} 18. Kh2 {[%clk 0:01:10]}  Rxd4 {[%clk 0:00:58]} 19. Ng5 {[%clk 0:01:10]}  f6 {[%clk 0:00:39]} 20. exf6 {[%clk 0:00:47]}  gxf6 {[%clk 0:00:40]} 21. Ne4 {[%clk 0:00:43]}  Rxd3 {[%clk 0:00:40]} 22. Rad1 {[%clk 0:00:41]}  Rxf3 {[%clk 0:00:36]} 23. Nc5 {[%clk 0:00:17]}  Rxh3+ {[%clk 0:00:33]} 0-1

[Event "December 19 Late 2023"]
[Site "https://www.chess.com"]
[Date "2023.12.19"]
[Round "9"]
[White "Kornyukov, Alexey"]
[Black "Harrington, Steve"]
[Result "1-0"]
[Board "110"]
[TimeControl "180+1"]
[WhiteFideId "4150457"]
[BlackFideId "2038730"]
[WhiteElo "2352"]
[BlackElo "2162"]
[WhiteTeam "RUS"]
[BlackTeam "USA"]
[WhiteClock "0:00:09"]
[BlackClock "0:00:00"]

1. d4 {[%clk 0:02:59]}  d5 {[%clk 0:02:58]} 2. c4 {[%clk 0:02:59]}  Nc6 {[%clk 0:02:58]} 3. cxd5 {[%clk 0:02:58]}  Qxd5 {[%clk 0:02:59]} 4. Nf3 {[%clk 0:02:58]}  e5 {[%clk 0:03:00]} 5. Nc3 {[%clk 0:02:57]}  Bb4 {[%clk 0:03:00]} 6. Bd2 {[%clk 0:02:58]}  Bxc3 {[%clk 0:03:01]} 7. Bxc3 {[%clk 0:02:58]}  exd4 {[%clk 0:03:01]} 8. Nxd4 {[%clk 0:02:56]}  Nxd4 {[%clk 0:03:01]} 9. e3 {[%clk 0:02:42]}  Nf6 {[%clk 0:02:45]} 10. Bxd4 {[%clk 0:02:38]}  Be6 {[%clk 0:02:37]} 11. Bxf6 {[%clk 0:02:16]}  Qxd1+ {[%clk 0:02:38]} 12. Rxd1 {[%clk 0:02:13]}  gxf6 {[%clk 0:02:39]} 13. b3 {[%clk 0:02:02]}  a5 {[%clk 0:02:36]} 14. Bc4 {[%clk 0:02:01]}  a4 {[%clk 0:02:33]} 15. Bxe6 {[%clk 0:01:53]}  fxe6 {[%clk 0:02:32]} 16. b4 {[%clk 0:01:52]}  a3 {[%clk 0:02:12]} 17. Kd2 {[%clk 0:01:44]}  O-O {[%clk 0:02:04]} 18. Kc3 {[%clk 0:01:42]}  Rf7 {[%clk 0:01:34]} 19. Kb3 {[%clk 0:01:41]}  f5 {[%clk 0:01:07]} 20. Rd4 {[%clk 0:01:37]}  e5 {[%clk 0:01:04]} 21. Rd5 {[%clk 0:01:35]}  Re7 {[%clk 0:01:03]} 22. Rhd1 {[%clk 0:01:32]}  Kf7 {[%clk 0:01:03]} 23. g3 {[%clk 0:01:04]}  Ke6 {[%clk 0:01:02]} 24. Rc5 {[%clk 0:00:53]}  c6 {[%clk 0:00:58]} 25. f4 {[%clk 0:00:44]}  exf4 {[%clk 0:00:30]} 26. exf4 {[%clk 0:00:43]}  Kf6 {[%clk 0:00:27]} 27. Rd6+ {[%clk 0:00:42]}  Re6 {[%clk 0:00:26]} 28. Rxe6+ {[%clk 0:00:37]}  Kxe6 {[%clk 0:00:27]} 29. Re5+ {[%clk 0:00:33]}  Kf6 {[%clk 0:00:25]} 30. b5 {[%clk 0:00:24]}  Rc8 {[%clk 0:00:18]} 31. Kxa3 {[%clk 0:00:22]}  cxb5 {[%clk 0:00:18]} 32. Rxb5 {[%clk 0:00:22]}  Rc2 {[%clk 0:00:19]} 33. h3 {[%clk 0:00:18]}  Rg2 {[%clk 0:00:16]} 34. Rb6+ {[%clk 0:00:16]}  Kg7 {[%clk 0:00:15]} 35. Rxb7+ {[%clk 0:00:17]}  Kg6 {[%clk 0:00:16]} 36. Rb3 {[%clk 0:00:17]}  Kf6 {[%clk 0:00:15]} 37. Rc3 {[%clk 0:00:15]}  Ke6 {[%clk 0:00:16]} 38. Kb3 {[%clk 0:00:14]}  Kd5 {[%clk 0:00:15]} 39. a4 {[%clk 0:00:14]}  Rg1 {[%clk 0:00:13]} 40. Kb4 {[%clk 0:00:13]}  Kd4 {[%clk 0:00:06]} 41. a5 {[%clk 0:00:12]}  Ra1 {[%clk 0:00:04]} 42. Ra3 {[%clk 0:00:11]}  Rb1+ {[%clk 0:00:04]} 43. Rb3 {[%clk 0:00:09]}  Ra1 {[%clk 0:00:00]} 44. Kb5 {[%clk 0:00:09]} 1-0

[Event "December 19 Late 2023"]
[Site "https://www.chess.com"]
[Date "2023.12.19"]
[Round "9"]
[White "Golubenko, Valentina"]
[Black "Ivanov, Aleksandr"]
[Result "0-1"]
[Board "111"]
[TimeControl "180+1"]
[WhiteFideId "4501993"]
[BlackFideId "2092980"]
[WhiteElo "2126"]
[BlackElo "2133"]
[WhiteTeam "CRO"]
[BlackTeam "USA"]
[WhiteClock "0:00:09"]
[BlackClock "0:00:28"]

1. d4 {[%clk 0:02:59]}  d5 {[%clk 0:02:59]} 2. c4 {[%clk 0:02:55]}  e6 {[%clk 0:02:59]} 3. e3 {[%clk 0:02:54]}  c6 {[%clk 0:02:58]} 4. Nc3 {[%clk 0:02:51]}  Nf6 {[%clk 0:02:57]} 5. Nf3 {[%clk 0:02:44]}  Nbd7 {[%clk 0:02:57]} 6. Bd3 {[%clk 0:02:43]}  dxc4 {[%clk 0:02:57]} 7. Bxc4 {[%clk 0:02:42]}  b5 {[%clk 0:02:57]} 8. Bd3 {[%clk 0:02:42]}  a6 {[%clk 0:02:57]} 9. e4 {[%clk 0:02:35]}  c5 {[%clk 0:02:49]} 10. d5 {[%clk 0:02:28]}  Nb6 {[%clk 0:02:27]} 11. O-O {[%clk 0:02:19]}  Be7 {[%clk 0:02:25]} 12. dxe6 {[%clk 0:02:07]}  Bxe6 {[%clk 0:02:24]} 13. Ng5 {[%clk 0:01:57]}  Bg4 {[%clk 0:02:15]} 14. f3 {[%clk 0:01:46]}  Bd7 {[%clk 0:02:11]} 15. e5 {[%clk 0:01:28]}  Nfd5 {[%clk 0:01:56]} 16. Nxd5 {[%clk 0:01:18]}  Nxd5 {[%clk 0:01:51]} 17. Nxh7 {[%clk 0:00:50]}  Nb4 {[%clk 0:01:40]} 18. Be4 {[%clk 0:00:41]}  Rc8 {[%clk 0:01:34]} 19. a3 {[%clk 0:00:35]}  Nc6 {[%clk 0:01:30]} 20. f4 {[%clk 0:00:24]}  Nd4 {[%clk 0:01:25]} 21. Be3 {[%clk 0:00:23]}  Bc6 {[%clk 0:01:16]} 22. Bxc6+ {[%clk 0:00:20]}  Rxc6 {[%clk 0:01:14]} 23. Ng5 {[%clk 0:00:20]}  Bxg5 {[%clk 0:00:48]} 24. fxg5 {[%clk 0:00:21]}  O-O {[%clk 0:00:44]} 25. Qg4 {[%clk 0:00:19]}  Nc2 {[%clk 0:00:41]} 26. Rad1 {[%clk 0:00:17]}  Nxe3 {[%clk 0:00:41]} 27. Rxd8 {[%clk 0:00:15]}  Nxg4 {[%clk 0:00:41]} 28. Rd7 {[%clk 0:00:14]}  Nxe5 {[%clk 0:00:39]} 29. Re7 {[%clk 0:00:14]}  Ng6 {[%clk 0:00:37]} 30. Ra7 {[%clk 0:00:14]}  c4 {[%clk 0:00:35]} 31. g3 {[%clk 0:00:12]}  Ne5 {[%clk 0:00:32]} 32. Kg2 {[%clk 0:00:12]}  Nd3 {[%clk 0:00:31]} 33. Rf3 {[%clk 0:00:11]}  Ne1+ {[%clk 0:00:31]} 34. Kf2 {[%clk 0:00:11]}  Nxf3 {[%clk 0:00:31]} 35. Kxf3 {[%clk 0:00:12]}  Rd8 {[%clk 0:00:29]} 36. h4 {[%clk 0:00:11]}  g6 {[%clk 0:00:29]} 37. Kg4 {[%clk 0:00:09]}  Rcd6 {[%clk 0:00:28]} 0-1

[Event "December 19 Late 2023"]
[Site "https://www.chess.com"]
[Date "2023.12.19"]
[Round "9"]
[White "Khokhlova, Daria"]
[Black "Reinecke, Katharina"]
[Result "1-0"]
[Board "113"]
[TimeControl "180+1"]
[WhiteFideId "24182729"]
[BlackFideId "12929727"]
[WhiteElo "2032"]
[BlackElo "1761"]
[WhiteTeam "FID"]
[BlackTeam "GER"]
[WhiteClock "0:00:05"]
[BlackClock "0:00:08"]

1. d4 {[%clk 0:03:00]}  d5 {[%clk 0:02:57]} 2. c4 {[%clk 0:03:00]}  c6 {[%clk 0:02:57]} 3. Nf3 {[%clk 0:02:59]}  Nf6 {[%clk 0:02:56]} 4. g3 {[%clk 0:02:59]}  Bg4 {[%clk 0:02:52]} 5. Ne5 {[%clk 0:02:56]}  Bf5 {[%clk 0:02:52]} 6. Nc3 {[%clk 0:02:55]}  e6 {[%clk 0:02:48]} 7. Bg2 {[%clk 0:02:51]}  Bd6 {[%clk 0:02:47]} 8. O-O {[%clk 0:02:34]}  O-O {[%clk 0:02:46]} 9. Bf4 {[%clk 0:02:28]}  Ne4 {[%clk 0:02:34]} 10. f3 {[%clk 0:02:19]}  Nxc3 {[%clk 0:02:30]} 11. bxc3 {[%clk 0:02:20]}  f6 {[%clk 0:02:28]} 12. Nd3 {[%clk 0:02:10]}  dxc4 {[%clk 0:02:16]} 13. Bxd6 {[%clk 0:02:09]}  Qxd6 {[%clk 0:02:14]} 14. Nc5 {[%clk 0:02:09]}  b6 {[%clk 0:02:01]} 15. Na4 {[%clk 0:02:06]}  Nd7 {[%clk 0:01:51]} 16. e4 {[%clk 0:02:04]}  Bg6 {[%clk 0:01:48]} 17. Nb2 {[%clk 0:01:55]}  e5 {[%clk 0:01:46]} 18. Nxc4 {[%clk 0:01:53]}  Qe7 {[%clk 0:01:38]} 19. Ne3 {[%clk 0:01:47]}  Kh8 {[%clk 0:01:35]} 20. Qe2 {[%clk 0:01:38]}  Rfd8 {[%clk 0:01:34]} 21. Rfd1 {[%clk 0:01:38]}  Rac8 {[%clk 0:01:26]} 22. a4 {[%clk 0:01:35]}  c5 {[%clk 0:01:24]} 23. d5 {[%clk 0:01:33]}  Be8 {[%clk 0:01:19]} 24. Nc4 {[%clk 0:01:29]}  Nb8 {[%clk 0:01:10]} 25. Rdb1 {[%clk 0:01:22]}  f5 {[%clk 0:01:07]} 26. exf5 {[%clk 0:01:07]}  Rxd5 {[%clk 0:01:05]} 27. f4 {[%clk 0:01:08]}  Rcd8 {[%clk 0:00:52]} 28. Bxd5 {[%clk 0:01:06]}  Rxd5 {[%clk 0:00:52]} 29. fxe5 {[%clk 0:01:04]}  Nc6 {[%clk 0:00:44]} 30. Rd1 {[%clk 0:01:01]}  Rxd1+ {[%clk 0:00:33]} 31. Rxd1 {[%clk 0:01:02]}  Bf7 {[%clk 0:00:31]} 32. e6 {[%clk 0:01:02]}  Be8 {[%clk 0:00:31]} 33. Nd6 {[%clk 0:00:55]}  h6 {[%clk 0:00:28]} 34. Nxe8 {[%clk 0:00:55]}  Qxe8 {[%clk 0:00:29]} 35. Qe4 {[%clk 0:00:48]}  Qh5 {[%clk 0:00:26]} 36. g4 {[%clk 0:00:42]}  Qg5 {[%clk 0:00:20]} 37. e7 {[%clk 0:00:20]}  Nxe7 {[%clk 0:00:17]} 38. Rd8+ {[%clk 0:00:20]}  Ng8 {[%clk 0:00:16]} 39. Kg2 {[%clk 0:00:14]}  Qxd8 {[%clk 0:00:16]} 40. Kg3 {[%clk 0:00:11]}  Qd1 {[%clk 0:00:14]} 41. Qe8 {[%clk 0:00:10]}  Qxa4 {[%clk 0:00:14]} 42. Qxa4 {[%clk 0:00:09]}  a5 {[%clk 0:00:12]} 43. Qb5 {[%clk 0:00:09]}  h5 {[%clk 0:00:12]} 44. Qxb6 {[%clk 0:00:09]}  hxg4 {[%clk 0:00:12]} 45. Kxg4 {[%clk 0:00:09]}  Kh7 {[%clk 0:00:13]} 46. Qxa5 {[%clk 0:00:08]}  Nf6+ {[%clk 0:00:13]} 47. Kf3 {[%clk 0:00:06]}  Kh6 {[%clk 0:00:08]} 48. Qxc5 {[%clk 0:00:05]} 1-0

[Event "December 19 Late 2023"]
[Site "https://www.chess.com"]
[Date "2023.12.19"]
[Round "9"]
[White "Thake, Conrad"]
[Black "Guzman Lozano, Campo Elias"]
[Result "0-1"]
[Board "115"]
[TimeControl "180+1"]
[WhiteFideId "5602947"]
[BlackFideId "4403746"]
[WhiteElo "1662"]
[BlackElo "2099"]
[WhiteTeam "MLT"]
[BlackTeam "COL"]
[WhiteClock "0:00:56"]
[BlackClock "0:02:07"]

1. e4 {[%clk 0:03:00]}  c5 {[%clk 0:02:57]} 2. Nf3 {[%clk 0:02:59]}  Nc6 {[%clk 0:02:58]} 3. Bb5 {[%clk 0:02:58]}  e5 {[%clk 0:02:57]} 4. Bxc6 {[%clk 0:02:57]}  dxc6 {[%clk 0:02:57]} 5. O-O {[%clk 0:02:54]}  Bd6 {[%clk 0:02:57]} 6. d3 {[%clk 0:02:49]}  Ne7 {[%clk 0:02:56]} 7. Bg5 {[%clk 0:02:32]}  O-O {[%clk 0:02:55]} 8. Nbd2 {[%clk 0:02:24]}  Be6 {[%clk 0:02:54]} 9. b3 {[%clk 0:02:20]}  Qd7 {[%clk 0:02:54]} 10. Nc4 {[%clk 0:02:13]}  f6 {[%clk 0:02:52]} 11. Bh4 {[%clk 0:02:10]}  Bc7 {[%clk 0:02:50]} 12. Ne3 {[%clk 0:02:00]}  b5 {[%clk 0:02:50]} 13. Qe2 {[%clk 0:01:58]}  Rad8 {[%clk 0:02:49]} 14. h3 {[%clk 0:01:56]}  Ng6 {[%clk 0:02:48]} 15. Bg3 {[%clk 0:01:54]}  Nf4 {[%clk 0:02:38]} 16. Bxf4 {[%clk 0:01:51]}  exf4 {[%clk 0:02:38]} 17. Nd1 {[%clk 0:01:48]}  Rfe8 {[%clk 0:02:37]} 18. a4 {[%clk 0:01:39]}  a6 {[%clk 0:02:33]} 19. Nb2 {[%clk 0:01:33]}  g5 {[%clk 0:02:32]} 20. Nh2 {[%clk 0:01:29]}  Qf7 {[%clk 0:02:27]} 21. axb5 {[%clk 0:01:23]}  axb5 {[%clk 0:02:26]} 22. Ra7 {[%clk 0:01:22]}  Rd7 {[%clk 0:02:26]} 23. Ng4 {[%clk 0:01:20]}  Kh8 {[%clk 0:02:24]} 24. Nd1 {[%clk 0:01:10]}  h5 {[%clk 0:02:12]} 25. Nh2 {[%clk 0:01:09]}  Qh7 {[%clk 0:02:10]} 26. f3 {[%clk 0:01:07]}  c4 {[%clk 0:02:08]} 27. bxc4 {[%clk 0:00:56]}  Bb6+ {[%clk 0:02:07]} 0-1

[Event "December 19 Late 2023"]
[Site "https://www.chess.com"]
[Date "2023.12.19"]
[Round "9"]
[White "Kostiukov, Alexandr"]
[Black "Vargas, Mauricio"]
[Result "1-0"]
[Board "116"]
[TimeControl "180+1"]
[WhiteFideId "14108100"]
[BlackFideId "4404572"]
[WhiteElo "2112"]
[BlackElo "1982"]
[WhiteTeam "UKR"]
[BlackTeam "COL"]
[WhiteClock "0:00:08"]
[BlackClock "0:00:07"]

1. g3 {[%clk 0:02:56]}  Nc6 {[%clk 0:02:58]} 2. Bg2 {[%clk 0:02:56]}  e5 {[%clk 0:02:58]} 3. c4 {[%clk 0:02:55]}  f5 {[%clk 0:02:58]} 4. Nc3 {[%clk 0:02:51]}  Nf6 {[%clk 0:02:57]} 5. e3 {[%clk 0:02:50]}  Bb4 {[%clk 0:02:57]} 6. Nd5 {[%clk 0:02:49]}  Be7 {[%clk 0:02:51]} 7. Ne2 {[%clk 0:02:46]}  O-O {[%clk 0:02:46]} 8. O-O {[%clk 0:02:45]}  d6 {[%clk 0:02:46]} 9. d4 {[%clk 0:02:43]}  e4 {[%clk 0:02:45]} 10. Nxe7+ {[%clk 0:02:33]}  Nxe7 {[%clk 0:02:43]} 11. d5 {[%clk 0:02:32]}  Ng6 {[%clk 0:02:41]} 12. b3 {[%clk 0:02:28]}  Ne5 {[%clk 0:02:39]} 13. Nd4 {[%clk 0:02:18]}  Qe8 {[%clk 0:02:34]} 14. Bb2 {[%clk 0:02:15]}  a6 {[%clk 0:02:33]} 15. Qe2 {[%clk 0:02:06]}  Nd3 {[%clk 0:02:31]} 16. Bc3 {[%clk 0:02:06]}  Qg6 {[%clk 0:02:28]} 17. f3 {[%clk 0:02:02]}  Ne5 {[%clk 0:02:20]} 18. fxe4 {[%clk 0:01:55]}  Nxe4 {[%clk 0:02:15]} 19. Bxe4 {[%clk 0:01:53]}  fxe4 {[%clk 0:02:15]} 20. Rxf8+ {[%clk 0:01:52]}  Kxf8 {[%clk 0:02:14]} 21. Rf1+ {[%clk 0:01:46]}  Kg8 {[%clk 0:02:14]} 22. Rf4 {[%clk 0:01:22]}  Bg4 {[%clk 0:02:11]} 23. Qc2 {[%clk 0:01:13]}  Nf3+ {[%clk 0:02:04]} 24. Nxf3 {[%clk 0:01:10]}  Bxf3 {[%clk 0:02:04]} 25. Qd2 {[%clk 0:01:04]}  Rf8 {[%clk 0:01:48]} 26. Rxf8+ {[%clk 0:00:58]}  Kxf8 {[%clk 0:01:48]} 27. Qd4 {[%clk 0:00:58]}  h5 {[%clk 0:01:44]} 28. c5 {[%clk 0:00:47]}  h4 {[%clk 0:01:43]} 29. Be1 {[%clk 0:00:46]}  Qg4 {[%clk 0:01:27]} 30. cxd6 {[%clk 0:00:32]}  cxd6 {[%clk 0:01:25]} 31. Qc4 {[%clk 0:00:23]}  Be2 {[%clk 0:01:20]} 32. Qc7 {[%clk 0:00:18]}  Qf3 {[%clk 0:00:56]} 33. Qd8+ {[%clk 0:00:15]}  Kf7 {[%clk 0:00:54]} 34. Qd7+ {[%clk 0:00:15]}  Kg6 {[%clk 0:00:49]} 35. Qe6+ {[%clk 0:00:14]}  Kh7 {[%clk 0:00:46]} 36. Bf2 {[%clk 0:00:14]}  h3 {[%clk 0:00:43]} 37. Qxh3+ {[%clk 0:00:13]}  Kg8 {[%clk 0:00:40]} 38. Qe6+ {[%clk 0:00:13]}  Kh7 {[%clk 0:00:33]} 39. Qh3+ {[%clk 0:00:11]}  Kg6 {[%clk 0:00:30]} 40. Qg2 {[%clk 0:00:11]}  Qg4 {[%clk 0:00:28]} 41. h3 {[%clk 0:00:11]}  Qf5 {[%clk 0:00:27]} 42. g4 {[%clk 0:00:11]}  Qxd5 {[%clk 0:00:26]} 43. Kh2 {[%clk 0:00:11]}  Bf3 {[%clk 0:00:25]} 44. Qg3 {[%clk 0:00:11]}  Qd1 {[%clk 0:00:22]} 45. Qf4 {[%clk 0:00:08]}  Qf1 {[%clk 0:00:10]} 46. Qf5+ {[%clk 0:00:07]}  Kh6 {[%clk 0:00:07]} 47. Qh5# {[%clk 0:00:08]} 1-0